Workbook

Sheet Mobile DG usage_For_slide
A1: Mobile DG Usage Использование Мобильного Дизельного Генератора | I1: W-4 | K1: No | L1: Region | M1: District | N1: Site Name | O1: Site ID | P1: Site under FLM | Q1: SLA | R1: Total | S1: 2015-12-28 | T1: 2015-12-29 | U1: 2015-12-30 | V1: 2015-12-31 | W1: 2016-01-01 | X1: 2016-01-02 | Y1: 2016-01-03 | Z1: 2016-01-04 | AA1: 2016-01-05 | AB1: 2016-01-06 | AC1: 2016-01-07 | AD1: 2016-01-08 | AE1: 2016-01-09 | AF1: 2016-01-10 | AG1: 2016-01-11 | AH1: 2016-01-12 | AI1: 2016-01-13 | AJ1: 2016-01-14 | AK1: 2016-01-15 | AL1: 2016-01-16 | AM1: 2016-01-17 | AN1: 2016-01-18 | AO1: 2016-01-19 | AP1: 2016-01-20 | AQ1: 2016-01-21 | AR1: 2016-01-22 | AS1: 2016-01-23 | AT1: 2016-01-24 | AU1: 2016-01-25 | AV1: 2016-01-26 | AW1: 2016-01-27 | AX1: 2016-01-28 | AY1: 2016-01-29 | AZ1: 2016-01-30 | BA1: 2016-01-31
A2: № | B2: Region Регион | C2: District | D2: Site Name | E2: Site ID | F2: Site under FLM | G2: SLA | H2: Total | K2: 1 | L2: North | M2: B.Gafurov | N2: Isfisor | O2: N00160 | P2: yes | Q2: 1 | T2: 1 | W2: 1
A3: 1 | B3: North | C3: Khujand | D3: 8mkr2_dcs | E3: N00016 | F3: yes | G3: 1 | H3: 1 | K3: 2 | L3: North | M3: Khujand | N3: 8mkr2_dcs | O3: N00016 | P3: yes | Q3: 1 | S3: 1 | T3: 1
A4: 2 | B4: North | C4: Khujand | D4: ATS5 | E4: Optix | F4: yes | G4: 1 | H4: 5 | K4: 3 | L4: North | M4: Chkalovsk | N4: NBarakat_dcs | O4: N00577 | P4: yes | Q4: 1 | R4: 2 | S4: 2 | T4: 2 | U4: 2 | V4: 2 | W4: 1 | X4: 2
A5: 3 | B5: North | C5: Khujand | D5: Jiltrest | E5: N00008 | F5: yes | G5: 0 | H5: 1 | K5: 4 | L5: North | M5: Khujand | N5: 12mkr | O5: N00001 | P5: yes | Q5: 0 | U5: 1
A6: 4 | B6: North | C6: Kayrakkum | D6: Kayrakkum4 | E6: N00500 | F6: yes | G6: 1 | H6: 1 | K6: 5 | L6: North | M6: Chkalovsk | N6: Chkalovsk5 | O6: N00079 | P6: yes | Q6: 1 | U6: 1
A7: 5 | B7: North | C7: Khujand | D7: 12mkr | E7: N00001 | G7: 0 | H7: 2 | K7: 1 | L7: North | M7: B.Gafurov | N7: Isfisor | O7: N00160 | P7: yes | Q7: 1 | R7: =(T7-S7)+(V7-U7)+(X7-W7)+(Z7-Y7)+(AB7-AA7)+(AD7-AC7)+(AF7-AE7) -> 3 | Z7: 1 | AB7: 1 | AC7: 1 | AD7: 1 | AF7: 1
A8: 6 | B8: North | C8: B.Gafurov | D8: Arbob2_3G | E8: N00612 | F8: yes | G8: 2 | H8: 1 | K8: 3 | L8: North | M8: Chkalovsk | N8: NBarakat_dcs | O8: N00577 | P8: yes | Q8: 1 | R8: =(T8-S8)+(V8-U8)+(X8-W8)+(Z8-Y8)+(AB8-AA8)+(AD8-AC8)+(AF8-AE8) -> 0 | Z8: 2 | AA8: 2
A9: Итого | H9: =SUM(H3:H8) -> 11 | K9: 4 | L9: North | M9: Khujand | N9: 12mkr | O9: N00001 | P9: yes | Q9: 0 | R9: =(T9-S9)+(V9-U9)+(X9-W9)+(Z9-Y9)+(AB9-AA9)+(AD9-AC9)+(AF9-AE9) -> 1 | AA9: 1 | AB9: 1 | AF9: 1
K10: 5 | L10: North | M10: Chkalovsk | N10: Chkalovsk5 | O10: N00079 | P10: yes | Q10: 1 | R10: =(T10-S10)+(V10-U10)+(X10-W10)+(Z10-Y10)+(AB10-AA10)+(AD10-AC10)+(AF10-AE10) -> 1 | AB10: 1 | AC10: 1 | AD10: 1
K11: 1 | L11: North | M11: B.Gafurov | N11: Isfisor | O11: N00160 | P11: yes | Q11: 1 | R11: =(T11-S11)+(V11-U11)+(X11-W11)+(Z11-Y11)+(AB11-AA11)+(AD11-AC11)+(AF11-AE11) -> 0 | AH11: 1 | AJ11: 1 | AK11: 1 | AL11: 1
K12: 2 | L12: North | M12: Khujand | N12: Jiltrest | O12: N00008 | P12: yes | Q12: 0 | R12: 0 | AG12: 1
K13: 3 | L13: North | M13: Khujand | N13: 12mkr | O13: N00001 | P13: yes | Q13: 0 | R13: 0 | AH13: 1 | AK13: 1
K14: 4 | L14: North | M14: Khujand | N14: Krepost3G | O14: N00517 | P14: yes | Q14: 1 | R14: 0 | AH14: 1 | AJ14: 1
K15: 5 | L15: North | M15: Khujand | N15: 8mkr2 | O15: N00016 | P15: yes | Q15: 1 | R15: 0 | AI15: 1 | AM15: 1
K16: 6 | L16: North | M16: B.Gafurov | N16: Arbob2_3G | O16: N00612 | P16: yes | Q16: 2 | R16: 0 | AI16: 1 | AL16: 1
K17: 7 | L17: North | M17: B.Gafurov | N17: Kulangir2 | O17: N00447 | P17: yes | Q17: 2 | R17: 0 | AJ17: 1
K18: 1 | L18: North | M18: B.Gafurov | N18: Isfisor | O18: N00160 | P18: yes | Q18: 1 | R18: =(T18-S18)+(V18-U18)+(X18-W18)+(Z18-Y18)+(AB18-AA18)+(AD18-AC18)+(AF18-AE18) -> 0 | AN18: 2 | AO18: 1 | AP18: 1 | AR18: 1 | AT18: 1
K19: 2 | L19: North | M19: Khujand | N19: ATS5 | O19: Optix | P19: yes | Q19: 1 | R19: =(T19-S19)+(V19-U19)+(X19-W19)+(Z19-Y19)+(AB19-AA19)+(AD19-AC19)+(AF19-AE19) -> 0 | AN19: 2 | AQ19: 1 | AR19: 1
K20: 3 | L20: North | M20: Khujand | N20: Lochin | O20: N00249 | P20: yes | Q20: 1 | R20: =(T20-S20)+(V20-U20)+(X20-W20)+(Z20-Y20)+(AB20-AA20)+(AD20-AC20)+(AF20-AE20) -> 0 | AO20: 1
K21: 4 | L21: North | M21: Kayrakkum | N21: Kayrakkum4 | O21: N00500 | P21: yes | Q21: 1 | R21: =(T21-S21)+(V21-U21)+(X21-W21)+(Z21-Y21)+(AB21-AA21)+(AD21-AC21)+(AF21-AE21) -> 0 | AP21: 1
K22: 5 | L22: North | M22: Chkalovsk | N22: Chkalovsk6_3G | O22: N00080 | P22: yes | Q22: 1 | R22: =(T22-S22)+(V22-U22)+(X22-W22)+(Z22-Y22)+(AB22-AA22)+(AD22-AC22)+(AF22-AE22) -> 0 | AQ22: 1 | AR22: 1
K23: 1 | L23: North | M23: Khujand | N23: 8mkr2_dcs | O23: N00016 | P23: yes | Q23: 1 | R23: =(T23-S23)+(V23-U23)+(X23-W23)+(Z23-Y23)+(AB23-AA23)+(AD23-AC23)+(AF23-AE23) -> 0 | AU23: 1
K24: 2 | L24: North | M24: Khujand | N24: ATS5 | O24: Optix | P24: yes | Q24: 1 | R24: 0 | AU24: 1 | AV24: 1 | AW24: 2 | AX24: 1
K25: 3 | L25: North | M25: Khujand | N25: Jiltrest | O25: N00008 | P25: yes | Q25: 0 | R25: =(T25-S25)+(V25-U25)+(X25-W25)+(Z25-Y25)+(AB25-AA25)+(AD25-AC25)+(AF25-AE25) -> 0 | AV25: 1
K26: 4 | L26: North | M26: Kayrakkum | N26: Kayrakkum4 | O26: N00500 | P26: yes | Q26: 1 | R26: =(T26-S26)+(V26-U26)+(X26-W26)+(Z26-Y26)+(AB26-AA26)+(AD26-AC26)+(AF26-AE26) -> 0 | AU26: 1
K27: 5 | L27: North | M27: Khujand | N27: 12mkr | O27: N00001 | P27: yes | Q27: 0 | R27: 0 | AV27: 1 | AX27: 1
K28: 6 | L28: North | M28: B.Gafurov | N28: Arbob2_3G | O28: N00612 | P28: yes | Q28: 2 | R28: 0 | AW28: 1

Sheet W-53 2015
A1: No | B1: Region Регион | C1: District | D1: Site Name | E1: Site ID | F1: Site under FLM | G1: SLA | H1: Total (Hours) | I1: 2015-12-28 | K1: 2015-12-29 | M1: 2015-12-30 | O1: 2015-12-31 | Q1: 2016-01-01 | S1: 2016-01-02 | U1: 2016-01-03
I2: From | J2: 2015-12-29 | K2: From | L2: Till | M2: From | N2: Till | O2: From | P2: Till | Q2: From | R2: Till | S2: From | T2: Till | U2: From | V2: Till
A3: 1 | B3: North | C3: B.Gafurov | D3: Isfisor | E3: N00160 | F3: yes | G3: 1 | H3: =(J3-I3)+(L3-K3)+(N3-M3)+(P3-O3)+(R3-Q3)+(T3-S3)+(V3-U3) -> 0.2916666667 | M3: 13:26:00 | N3: 17:10:00 | S3: 13:50:00 | T3: 17:06:00 | W3: 2
A4: 2 | B4: North | C4: Khujand | D4: 8mkr2_dcs | E4: N00016 | F4: yes | G4: 1 | H4: =(J4-I4)+(L4-K4)+(N4-M4)+(P4-O4)+(R4-Q4)+(T4-S4)+(V4-U4) -> 0.2152777778 | K4: 14:50:00 | L4: 15:30:00 | M4: 06:00:00 | N4: 10:30:00 | W4: 2
A5: 3 | B5: North | C5: Chkalovsk | D5: NBarakat_dcs | E5: N00577 | F5: yes | G5: 1 | H5: =(J5-I5)+(L5-K5)+(N5-M5)+(P5-O5)+(R5-Q5)+(T5-S5)+(V5-U5) -> 5.447222222 | I5: 05:35:00 | J5: 23:59:00 | K5: 00:00:00 | L5: 23:50:00 | M5: 05:30:00 | N5: 23:59:00 | O5: 00:00:00 | P5: 23:59:00 | Q5: 00:00:00 | R5: 23:59:00 | S5: 00:00:00 | T5: 08:10:00 | U5: 10:06:00 | V5: 23:59:00 | W5: 13
A6: 4 | B6: North | C6: Khujand | D6: 12mkr | E6: N00001 | F6: yes | G6: 0 | H6: =(J6-I6)+(L6-K6)+(N6-M6)+(P6-O6)+(R6-Q6)+(T6-S6)+(V6-U6) -> 0.1597222222 | O6: 01:10:00 | P6: 05:00:00 | W6: 1
A7: 5 | B7: North | C7: Chkalovsk | D7: Chkalovsk5 | E7: N00079 | F7: yes | G7: 1 | H7: =(J7-I7)+(L7-K7)+(N7-M7)+(P7-O7)+(R7-Q7)+(T7-S7)+(V7-U7) -> 0.03194444444 | O7: 13:24:00 | P7: 14:10:00 | W7: 1
A8: итог | W8: =SUM(W3:W7) -> 19

Sheet W-1
A1: No | B1: Region Регион | C1: District | D1: Site Name | E1: Site ID | F1: Site under FLM | G1: SLA | H1: Total (Hours) | I1: 2016-01-04 | K1: 2016-01-05 | M1: 2016-01-06 | O1: 2016-01-07 | Q1: 2016-01-08 | S1: 2016-01-09 | U1: 2016-01-10
I2: From | J2: Till | K2: From | L2: Till | M2: From | N2: Till | O2: From | P2: Till | Q2: From | R2: Till | S2: From | T2: Till | U2: From | V2: Till
A3: 1 | B3: North | C3: B.Gafurov | D3: Isfisor | E3: N00160 | F3: yes | G3: 1 | H3: =(J3-I3)+(L3-K3)+(N3-M3)+(P3-O3)+(R3-Q3)+(T3-S3)+(V3-U3) -> 0.9104166667 | I3: 14:53:00 | J3: 17:06:00 | M3: 11:00:00 | N3: 17:00:00 | O3: 12:10:00 | P3: 16:50:00 | Q3: 15:12:00 | R3: 17:30:00 | U3: 10:30:00 | V3: 17:10:00 | W3: 5
A4: 3 | B4: North | C4: Chkalovsk | D4: NBarakat_dcs | E4: N00577 | F4: yes | G4: 1 | H4: =(J4-I4)+(L4-K4)+(N4-M4)+(P4-O4)+(R4-Q4)+(T4-S4)+(V4-U4) -> 1.645833333 | I4: 00:00:00 | J4: 22:00:00 | K4: 05:30:00 | L4: 23:00:00 | W4: 4
A5: 4 | B5: North | C5: Khujand | D5: 12mkr | E5: N00001 | F5: yes | G5: 0 | H5: =(J5-I5)+(L5-K5)+(N5-M5)+(P5-O5)+(R5-Q5)+(T5-S5)+(V5-U5) -> 0.3868055556 | K5: 01:25:00 | L5: 04:55:00 | M5: 02:21:00 | N5: 05:00:00 | U5: 01:52:00 | V5: 05:00:00 | W5: 3
A6: 5 | B6: North | C6: Chkalovsk | D6: Chkalovsk5 | E6: N00079 | F6: yes | G6: 1 | H6: =(J6-I6)+(L6-K6)+(N6-M6)+(P6-O6)+(R6-Q6)+(T6-S6)+(V6-U6) -> 1.052083333 | M6: 13:03:00 | N6: 23:40:00 | O6: 06:20:00 | P6: 17:54:00 | Q6: 12:41:00 | R6: 15:45:00 | W6: 3
A7: Итог | W7: =SUM(W2:W6) -> 15

Sheet W-2
A1: No | B1: Region Регион | C1: District | D1: Site Name | E1: Site ID | F1: Site under FLM | G1: SLA | H1: Total (Hours) | I1: 2016-01-11 | K1: 2016-01-12 | M1: 2016-01-13 | O1: 2016-01-14 | Q1: 2016-01-15 | S1: 2016-01-16 | U1: 2016-01-17
I2: From | J2: Till | K2: From | L2: Till | M2: From | N2: Till | O2: From | P2: Till | Q2: From | R2: Till | S2: From | T2: Till | U2: From | V2: Till
A3: 1 | B3: North | C3: B.Gafurov | D3: Isfisor | E3: N00160 | F3: yes | G3: 1 | H3: =(J3-I3)+(L3-K3)+(N3-M3)+(P3-O3)+(R3-Q3)+(T3-S3)+(V3-U3) -> 0.5125 | K3: 14:45:00 | L3: 16:25:00 | O3: 13:30:00 | P3: 17:20:00 | Q3: 14:02:00 | R3: 18:00:00 | S3: 14:20:00 | T3: 17:10:00 | W3: 4
A4: 2 | B4: North | C4: Khujand | D4: Jiltrest | E4: N00008 | F4: yes | G4: 0 | H4: 0.04513888889 | I4: 15:20:00 | J4: 16:25:00 | W4: 1
A5: 3 | B5: North | C5: Khujand | D5: 12mkr | E5: N00001 | F5: yes | G5: 0 | H5: 0.1388888889 | K5: 12:35:00 | L5: 14:20:00 | Q5: 12:35:00 | R5: 14:10:00 | W5: 2
A6: 4 | B6: North | C6: Khujand | D6: Krepost3G | E6: N00517 | F6: yes | G6: 1 | H6: 0.1076388889 | K6: 13:55:00 | L6: 15:20:00 | O6: 11:35:00 | P6: 12:45:00 | W6: 2
A7: 5 | B7: North | C7: Khujand | D7: 8mkr2 | E7: N00016 | F7: yes | G7: 1 | H7: 0.2569444444 | M7: 09:25:00 | N7: 12:30:00 | U7: 09:25:00 | V7: 12:30:00 | W7: 2
A8: 6 | B8: North | C8: B.Gafurov | D8: Arbob2_3G | E8: N00612 | F8: yes | G8: 2 | H8: 0.2256944444 | M8: 10:10:00 | N8: 13:25:00 | S8: 11:45:00 | T8: 13:55:00 | W8: 2
A9: 7 | B9: North | C9: B.Gafurov | D9: Kulangir2 | E9: N00447 | F9: yes | G9: 2 | H9: 0.1215277778 | O9: 13:25:00 | P9: 16:20:00 | W9: 1
A10: Итог | W10: =SUM(W5:W9) -> 9

Sheet W-3
A1: No | B1: Region Регион | C1: District | D1: Site Name | E1: Site ID | F1: Site under FLM | G1: SLA | H1: Total (Hours) | I1: 2016-01-18 | K1: 2016-01-19 | M1: 2016-01-20 | O1: 2016-01-21 | Q1: 2016-01-22 | S1: 2016-01-23 | U1: 2016-01-24
I2: From | J2: Till | K2: From | L2: Till | M2: From | N2: Till | O2: From | P2: Till | Q2: From | R2: Till | S2: From | T2: Till | U2: From | V2: Till
A3: 1 | B3: North | C3: B.Gafurov | D3: Isfisor | E3: N00160 | F3: yes | G3: 1 | H3: =(J3-I3)+(L3-K3)+(N3-M3)+(P3-O3)+(R3-Q3)+(T3-S3)+(V3-U3) -> 0.08611111111 | I3: 1 | J3: 17:20:00 | K3: 13:20:00 | L3: 16:24:00 | M3: 16:07:00 | N3: 17:08:00 | Q3: 14:35:00 | R3: 17:00:00 | U3: 14:27:00 | V3: 16:41:00 | W3: 5
A4: 2 | B4: North | C4: Khujand | D4: ATS5 | E4: Optix | F4: yes | G4: 1 | H4: =(J4-I4)+(L4-K4)+(N4-M4)+(P4-O4)+(R4-Q4)+(T4-S4)+(V4-U4) -> 0.45 | I4: 1 | J4: 16:28:00 | O4: 17:22:00 | P4: 23:50:00 | Q4: 04:00:00 | R4: 15:52:00 | W4: 3
A5: 3 | B5: North | C5: Khujand | D5: Lochin | E5: N00249 | F5: yes | G5: 1 | H5: =(J5-I5)+(L5-K5)+(N5-M5)+(P5-O5)+(R5-Q5)+(T5-S5)+(V5-U5) -> 0.09305555556 | K5: 14:48:00 | L5: 17:02:00 | W5: 1
A6: 4 | B6: North | C6: Kayrakkum | D6: Kayrakkum4 | E6: N00500 | F6: yes | G6: 1 | H6: =(J6-I6)+(L6-K6)+(N6-M6)+(P6-O6)+(R6-Q6)+(T6-S6)+(V6-U6) -> 0.1756944444 | M6: 14:45:00 | N6: 18:58:00 | W6: 1
A7: 5 | B7: North | C7: Chkalovsk | D7: Chkalovsk6_3G | E7: N00080 | F7: yes | G7: 1 | H7: =(J7-I7)+(L7-K7)+(N7-M7)+(P7-O7)+(R7-Q7)+(T7-S7)+(V7-U7) -> 0.4423611111 | O7: 09:45:00 | P7: 14:41:00 | Q7: 04:00:00 | R7: 09:41:00 | W7: 2
A8: Итог | W8: =SUM(W3:W7) -> 12

Sheet W-4
A1: No | B1: Region Регион | C1: District | D1: Site Name | E1: Site ID | F1: Site under FLM | G1: SLA | H1: Total (Hours) | I1: 2016-01-25 | K1: 2016-01-26 | M1: 2016-01-27 | O1: 2016-01-28 | Q1: 2016-01-29 | S1: 2016-01-30 | U1: 2016-01-31
I2: From | J2: Till | K2: From | L2: Till | M2: From | N2: Till | O2: From | P2: Till | Q2: From | R2: Till | S2: From | T2: Till | U2: From | V2: Till
A3: 1 | B3: North | C3: Khujand | D3: 8mkr2_dcs | E3: N00016 | F3: yes | G3: 1 | H3: =(J3-I3)+(L3-K3)+(N3-M3)+(P3-O3)+(R3-Q3)+(T3-S3)+(V3-U3) -> 0.05902777778 | I3: 15:20:00 | J3: 16:45:00 | W3: 1
A4: 2 | B4: North | C4: Khujand | D4: ATS5 | E4: Optix | F4: yes | G4: 1 | H4: 1.595833333 | I4: 10:40:00 | J4: 18:22:00 | K4: 12:24:00 | L4: 17:01:00 | M4: 05:00:00 | N4: 22:59:00 | O4: 05:00:00 | P4: 13:00:00 | W4: 5
A5: 3 | B5: North | C5: Khujand | D5: Jiltrest | E5: N00008 | F5: yes | G5: 0 | H5: =(J5-I5)+(L5-K5)+(N5-M5)+(P5-O5)+(R5-Q5)+(T5-S5)+(V5-U5) -> 0.07986111111 | K5: 08:20:00 | L5: 10:15:00 | W5: 1
A6: 4 | B6: North | C6: Kayrakkum | D6: Kayrakkum4 | E6: N00500 | F6: yes | G6: 1 | H6: =(J6-I6)+(L6-K6)+(N6-M6)+(P6-O6)+(R6-Q6)+(T6-S6)+(V6-U6) -> 0.2111111111 | I6: 11:31:00 | J6: 16:35:00 | W6: 1
A7: 5 | B7: North | C7: Khujand | D7: 12mkr | E7: N00001 | F7: yes | G7: 0 | H7: 0.3590277778 | K7: 10:58:00 | L7: 18:00:00 | O7: 12:35:00 | P7: 14:10:00 | W7: 2
A8: 6 | B8: North | C8: B.Gafurov | D8: Arbob2_3G | E8: N00612 | F8: yes | G8: 2 | H8: 0.09027777778 | M8: 11:45:00 | N8: 13:55:00 | W8: 1
A9: Итого | W9: =SUM(W3:W8) -> 11
